bitfinex/quotes_SOLUSD_20250106
["timestamp","ask_amount","ask_price","bid_price","bid_amount"]
[1736124820340,14.61418521,212.65,212.58,14.61418521]
[1736124820643,14.61418521,212.63,212.55,150.81418521]
[1736124820870,14.61418521,212.62,212.55,150.81418521]
[1736124821766,14.61418521,212.63,212.55,150.81418521]
[1736124823451,38.39106921,212.62,212.55,150.81418521]
[1736124823652,14.61418521,212.61,212.54,150.81418521]
[1736124824387,14.61418521,212.61,212.54,136.2]
[1736124824586,14.61418521,212.58,212.53,136.2]
[1736124824890,14.61418521,212.54,212.49,136.2]
[1736124825184,14.61418521,212.54,212.47,14.61418521]
[1736124826158,38.39106921,212.55,212.48,14.61418521]
[1736124827082,38.39106921,212.55,212.47,14.61418521]
[1736124828888,14.61418521,212.54,212.47,14.61418521]
[1736124830595,38.39106921,212.55,212.47,14.61418521]
[1736124831392,38.39106921,212.55,212.48,14.61418521]
[1736124832381,38.39106921,212.55,212.47,14.61418521]
[1736124833781,14.61418521,212.54,212.47,14.61418521]
[1736124834602,14.61418521,212.54,212.46,14.61418521]
[1736124835812,14.61418521,212.54,212.46,150.81418521]
[1736124836991,9.36170154,212.54,212.47,9.36170154]
[1736124837792,9.36170154,212.52,212.46,9.36170154]
[1736124837977,9.36170154,212.53,212.46,9.36170154]
[1736124838174,9.36170154,212.54,212.47,9.36170154]
[1736124838500,23.776884,212.55,212.48,9.36170154]
[1736124838501,9.36170154,212.55,212.48,9.36170154]
[1736124838702,23.776884,212.54,212.48,9.36170154]
[1736124839002,23.776884,212.54,212.49,9.36170154]
[1736124839503,23.776884,212.55,212.49,9.36170154]
[1736124840275,33.13858554,212.55,212.48,9.36170154]
[1736124842371,33.13858554,212.55,212.48,9.33728436]
[1736124842706,9.36170154,212.54,212.47,9.36170154]
[1736124844100,23.776884,212.51,212.44,136.2]
[1736124844412,23.776884,212.51,212.45,9.36170154]
[1736124844710,23.776884,212.51,212.46,9.36170154]
[1736124845518,10.98720154,212.54,212.47,9.36170154]
[1736124845806,9.36170154,212.53,212.46,9.36170154]
[1736124846211,9.36170154,212.52,212.44,136.2]
[1736124846386,33.13858554,212.51,212.44,136.2]
[1736124846583,33.13858554,212.51,212.44,145.56170154]
[1736124847782,33.13858554,212.51,212.44,9.36170154]
[1736124849305,9.36170154,212.5,212.42,136.2]
[1736124849515,9.36170154,212.48,212.4,153.44675463]
[1736124849808,9.36170154,212.48,212.42,9.36170154]
[1736124850010,33.13858554,212.48,212.42,9.36170154]
[1736124850380,33.13858554,212.47,212.4,162.80845617]
[1736124850587,9.36170154,212.46,212.4,162.80845617]
[1736124850898,9.36170154,212.48,212.41,9.36170154]
[1736124851290,33.13858554,212.48,212.41,9.36170154]
[1736124851906,9.36170154,212.47,212.41,9.36170154]
[1736124852286,33.13858554,212.48,212.41,9.36170154]
[1736124852691,33.13858554,212.47,212.4,162.80845617]
[1736124853786,22.12,212.49,212.4,17.24675463]
[1736124853787,9.36170154,212.46,212.4,17.24675463]
[1736124854999,23.776884,212.48,212.42,9.36170154]
[1736124855312,23.776884,212.48,212.43,9.36170154]
[1736124856209,2.12,212.49,212.43,9.36170154]
[1736124856706,9.36170154,212.5,212.43,9.36170154]
[1736124857113,23.776884,212.49,212.4,17.95287498]
[1736124857315,23.776884,212.49,212.43,9.36170154]
[1736124857995,9.36170154,212.5,212.43,9.36170154]
[1736124858396,9.36170154,212.5,212.44,9.36170154]
[1736124858602,23.776884,212.5,212.44,9.36170154]
[1736124859513,33.13858554,212.5,212.43,9.36170154]
[1736124860201,9.36170154,212.48,212.42,9.36170154]
[1736124861301,9.36170154,212.48,212.41,9.36170154]
[1736124861905,9.36170154,212.48,212.42,9.36170154]
[1736124862099,9.36170154,212.49,212.42,9.36170154]
[1736124863722,33.13858554,212.5,212.43,9.36170154]
[1736124864738,9.36170154,212.49,212.42,9.36170154]
[1736124868533,23.776884,212.48,212.42,9.36170154]
[1736124869336,23.776884,212.48,212.41,10.06769855]
[1736124869940,9.36170154,212.47,212.41,0.70599701]
[1736124870123,9.36170154,212.47,212.4,153.44675463]
[1736124870637,23.776884,212.46,212.4,153.44675463]
[1736124871845,23.776884,212.46,212.4,17.24675463]
[1736124872221,23.776884,212.46,212.4,26.60845617]
[1736124873322,23.776884,212.46,212.4,17.24675463]
[1736124874043,33.13858554,212.46,212.4,17.24675463]
[1736124874340,23.776884,212.45,212.4,17.24675463]
[1736124874518,9.36170154,212.44,212.4,17.24675463]
[1736124876221,23.776884,212.43,212.4,17.24675463]
[1736124876926,9.36170154,212.43,212.4,17.24675463]
[1736124879644,9.36170154,212.44,212.4,17.24675463]
[1736124880446,9.36170154,212.43,212.4,17.24675463]
[1736124883445,23.776884,212.46,212.4,17.24675463]
[1736124883649,9.36170154,212.45,212.4,17.24675463]
[1736124884978,9.36170154,212.44,212.4,17.24675463]
[1736124888385,9.36170154,212.43,212.4,17.24675463]
[1736124892886,9.36170154,212.42,212.4,17.24675463]
[1736124893076,9.36170154,212.41,212.4,17.24675463]
[1736124894588,9.36170154,212.42,212.4,17.24675463]
[1736124899196,9.36170154,212.43,212.4,17.24675463]
[1736124900701,9.36170154,212.42,212.4,17.24675463]
[1736124901200,9.36170154,212.41,212.4,17.24675463]
[1736124903009,33.13858554,212.41,212.4,17.24675463]
[1736124904094,9.36170154,212.41,212.4,17.24675463]
[1736124904701,2.1,212.44,212.4,17.24675463]
[1736124904910,1.5316,212.47,212.4,17.24675463]
[1736124905078,9.36170154,212.44,212.4,17.24675463]
[1736124907207,9.36170154,212.45,212.4,17.24675463]
[1736124907414,8.84107053,212.53,212.42,9.36170154]
[1736124907587,8.84107053,212.53,212.43,145.56170154]
[1736124907795,9.36170154,212.5,212.43,145.56170154]
[1736124908515,9.36170154,212.5,212.44,9.36170154]
[1736124908888,9.36170154,212.5,212.44,10.06755157]
[1736124909121,2.08,212.52,212.44,10.06755157]
[1736124909315,9.36170154,212.54,212.47,9.36170154]
[1736124909486,9.36170154,212.53,212.47,0.70579277]
[1736124909683,9.36170154,212.53,212.47,136.90579277]
[1736124909886,9.36170154,212.53,212.47,136.2]
[1736124910313,9.36170154,212.53,212.47,145.56170154]
[1736124910811,2.08,212.56,212.47,145.56170154]
[1736124910812,9.36170154,212.54,212.47,145.56170154]
[1736124912289,9.36170154,212.53,212.47,145.56170154]
[1736124913212,9.36170154,212.54,212.48,136.9057564]
[1736124913513,9.36170154,212.54,212.48,136.2]
[1736124914214,9.36170154,212.54,212.48,145.56170154]
[1736124914693,9.36170154,212.54,212.49,0.70573012]
[1736124915428,2.08,212.57,212.49,146.26743166]
[1736124915628,9.36170154,212.56,212.49,152.21890154]
[1736124916908,9.36170154,212.55,212.49,152.21890154]
[1736124917712,9.36170154,212.55,212.49,142.8572]
[1736124917912,9.36170154,212.51,212.49,136.2]
[1736124918101,9.36170154,212.51,212.45,9.36170154]
[1736124919187,9.36170154,212.49,212.45,136.2]
[1736124919412,9.36170154,212.49,212.43,147.19770154]
[1736124921116,9.36170154,212.5,212.43,147.19770154]
[1736124922198,9.36170154,212.51,212.44,146.26759655]
[1736124922417,9.36170154,212.51,212.44,145.56170154]
[1736124923615,9.36170154,212.5,212.44,145.56170154]
[1736124923816,9.36170154,212.51,212.44,145.56170154]
[1736124924315,9.36170154,212.5,212.44,136.2]
[1736124924709,9.36170154,212.5,212.43,1.636]
[1736124924710,9.36170154,212.47,212.43,136.2]
[1736124925210,9.36170154,212.48,212.43,136.2]
[1736124925419,9.36170154,212.47,212.43,136.2]
[1736124925812,9.36170154,212.48,212.43,136.2]
[1736124928617,9.36170154,212.47,212.4,162.80845617]
[1736124928822,9.36170154,212.46,212.4,153.44675463]
[1736124929499,9.36170154,212.47,212.4,162.80845617]
[1736124932330,9.36170154,212.47,212.4,153.44675463]
[1736124932625,9.36170154,212.47,212.4,162.80845617]
[1736124932826,9.36170154,212.48,212.41,10.06770745]
[1736124933826,9.36170154,212.48,212.41,9.36170154]
[1736124935327,9.36170154,212.47,212.41,9.36170154]
[1736124937311,9.36170154,212.48,212.41,9.36170154]
[1736124937514,9.36170154,212.46,212.4,153.44675463]
[1736124937714,9.36170154,212.46,212.4,17.24675463]
[1736124939434,9.36170154,212.47,212.4,26.60845617]
[1736124940333,9.36170154,212.47,212.4,17.24675463]
[1736124940535,9.36170154,212.46,212.4,17.24675463]
[1736124940737,9.36170154,212.44,212.4,17.24675463]
[1736124941533,9.36170154,212.45,212.4,17.24675463]
[1736124941820,29.36170154,212.47,212.4,26.60845617]
[1736124942113,23.776884,212.46,212.4,26.60845617]
[1736124942317,33.13858554,212.46,212.4,17.24675463]
[1736124943525,9.36170154,212.45,212.4,17.24675463]
[1736124945840,9.36170154,212.44,212.4,17.24675463]
[1736124947120,23.776884,212.44,212.4,17.24675463]
[1736124949823,25.856884,212.44,212.4,17.24675463]
[1736124952449,35.21858554,212.44,212.4,17.24675463]
[1736124959059,9.36170154,212.43,212.4,17.24675463]
[1736124959259,23.776884,212.42,212.4,17.24675463]
[1736124960894,9.36170154,212.42,212.4,17.24675463]
[1736124961448,33.13858554,212.41,212.4,17.24675463]
[1736124964875,33.13858554,212.41,212.23,110.8592]
[1736124964876,23.776884,212.4,212.29,9.36170154]
[1736124965061,23.776884,212.35,212.29,145.56170154]
[1736124965475,23.776884,212.35,212.29,136.2]
[1736124965662,23.776884,212.35,212.29,145.56170154]
[1736124966690,23.776884,212.35,212.29,136.2]
[1736124966880,23.776884,212.35,212.3,9.36170154]
[1736124968877,23.776884,212.35,212.29,145.56170154]
[1736124970581,23.776884,212.35,212.29,9.36170154]
[1736124973385,33.13858554,212.35,212.29,9.36170154]
[1736124974774,23.776884,212.35,212.29,9.36170154]
[1736124976593,23.776884,212.35,212.29,145.56170154]
[1736124977475,33.13858554,212.35,212.29,145.56170154]
[1736124978093,33.13858554,212.35,212.26,137.7191]
[1736124978094,23.776884,212.33,212.26,137.7191]
[1736124978266,33.13858554,212.31,212.26,136.2]
[1736124979487,8.3249487,212.39,212.27,9.36170154]
[1736124979695,2.08,212.34,212.29,9.36170154]
[1736124979990,2.08,212.34,212.3,0.70637824]
[1736124980771,2.08,212.34,212.29,9.36170154]
[1736124980983,2.08,212.34,212.29,10.06811064]
[1736124981879,33.13858554,212.33,212.28,136.2]
[1736124982788,11.44170154,212.34,212.28,145.56170154]
[1736124983092,2.08,212.34,212.29,10.06812846]
[1736124983689,9.36170154,212.35,212.29,10.06812846]
[1736124983878,6.4345,212.39,212.29,136.2]
[1736124983879,9.36170154,212.31,212.29,136.2]
[1736124984073,33.13858554,212.33,212.29,136.2]
[1736124984278,9.36170154,212.33,212.29,136.2]
[1736124984462,33.13858554,212.33,212.29,136.2]
[1736124984669,23.776884,212.33,212.29,136.2]
[1736124985580,1.6437,212.38,212.29,136.2]
[1736124985791,11.44170154,212.37,212.3,146.26815476]
[1736124985979,2.08,212.36,212.3,145.56170154]
[1736124986179,2.08,212.36,212.31,0.70635405]
[1736124987198,23.776884,212.35,212.3,136.2]
[1736124987574,33.13858554,212.35,212.3,136.2]
[1736124990713,23.776884,212.35,212.3,136.2]
[1736124991114,23.776884,212.35,212.31,0.70639857]
[1736124991474,23.776884,212.35,212.3,136.2]
[1736124993702,23.776884,212.35,212.31,0.70637052]
[1736124994000,13.3842,212.43,212.32,9.36170154]
[1736124994181,9.36170154,212.39,212.32,9.36170154]
[1736124994383,23.776884,212.38,212.33,0.70627463]
[1736124995698,23.776884,212.38,212.32,9.36170154]
[1736124996000,9.36170154,212.37,212.31,145.56170154]
[1736124996776,9.36170154,212.37,212.31,136.2]
[1736124998073,11.44170154,212.38,212.31,145.56170154]
[1736124999884,11.44170154,212.38,212.32,0.70628577]
[1736125000274,11.44170154,212.38,212.31,145.56170154]
[1736125000705,11.44170154,212.38,212.32,0.7063218]
[1736125000904,8.78405685,212.47,212.36,9.36170154]
[1736125001078,9.36170154,212.45,212.38,9.36170154]
[1736125001412,8.78405685,212.47,212.39,9.36170154]
[1736125001579,2.08,212.44,212.39,146.26781697]
[1736125001774,2.08,212.44,212.4,10.06774777]
[1736125001995,2.08,212.44,212.39,136.2]
[1736125002206,11.44170154,212.44,212.39,136.2]
[1736125003510,2.08,212.44,212.39,136.2]
[1736125004183,8.78405685,212.53,212.4,146.26776508]
[1736125004384,2.08,212.52,212.4,145.56170154]
[1736125004585,9.36170154,212.47,212.4,145.56170154]
[1736125004883,33.13858554,212.46,212.4,145.56170154]
[1736125005083,23.776884,212.46,212.4,145.56170154]
[1736125007914,23.776884,212.46,212.41,9.36170154]
[1736125008114,23.776884,212.46,212.41,10.06770085]
[1736125008589,23.776884,212.46,212.4,145.56170154]
[1736125009509,9.36170154,212.44,212.4,136.2]
[1736125009684,9.36170154,212.42,212.4,136.2]
[1736125009889,9.36170154,212.42,212.37,137.7339]
[1736125010107,9.36170154,212.41,212.37,137.7339]
[1736125010689,23.776884,212.44,212.37,137.7339]
[1736125010890,9.36170154,212.41,212.37,137.7339]
[1736125011812,9.36170154,212.4,212.35,136.2]
[1736125015516,9.36170154,212.4,212.33,151.72710154]
[1736125017703,23.776884,212.44,212.36,9.36170154]
[1736125017903,9.36170154,212.42,212.36,9.36170154]
[1736125019246,23.776884,212.41,212.35,9.36170154]
[1736125021226,9.36170154,212.41,212.34,10.0679431]
[1736125021531,9.36170154,212.41,212.34,146.2679431]
[1736125021703,9.36170154,212.41,212.34,145.56170154]
[1736125022230,9.36170154,212.41,212.34,136.2]
[1736125022406,9.36170154,212.41,212.34,145.56170154]
[1736125025727,23.776884,212.37,212.29,137.8495]
[1736125025928,23.776884,212.35,212.3,0.70632258]
[1736125026110,23.776884,212.35,212.3,136.90640028]
[1736125026310,23.776884,212.35,212.3,145.56170154]
[1736125027134,11.44170154,212.38,212.31,9.36170154]
[1736125027329,2.08,212.38,212.34,9.36170154]
[1736125027505,2.08,212.38,212.31,136.90629549]
[1736125027706,2.08,212.38,212.35,9.36170154]
[1736125028714,2.08,212.38,212.34,9.36170154]
[1736125028926,23.776884,212.4,212.34,9.36170154]
[1736125030535,23.776884,212.4,212.34,145.56170154]
[1736125032038,11.44170154,212.42,212.36,9.36170154]
[1736125032414,23.776884,212.41,212.35,9.36170154]
[1736125032637,23.776884,212.41,212.35,10.06792297]
[1736125032814,23.776884,212.41,212.36,9.36170154]
[1736125033316,3.5406909,212.5,212.4,9.36170154]
[1736125033531,9.36170154,212.48,212.41,9.36170154]
[1736125034036,23.776884,212.47,212.41,9.36170154]
[1736125034415,25.856884,212.47,212.41,9.36170154]
[1736125034633,2.08,212.47,212.41,9.36170154]
[1736125034824,2.08,212.47,212.42,10.06768272]
[1736125035735,35.21858554,212.47,212.4,9.36170154]
[1736125036037,23.776884,212.46,212.4,9.36170154]
[1736125037436,23.776884,212.46,212.41,9.36170154]
[1736125039122,23.776884,212.46,212.4,9.36170154]
[1736125039439,23.776884,212.46,212.4,145.56170154]
[1736125040142,29.36170154,212.49,212.42,9.36170154]
[1736125040320,2.08,212.48,212.42,9.36170154]
[1736125041729,23.776884,212.47,212.41,10.06769673]
[1736125043245,33.13858554,212.47,212.41,0.70599519]
[1736125043425,9.36170154,212.46,212.4,136.2]
[1736125043943,33.13858554,212.47,212.4,145.56170154]
[1736125044444,9.36170154,212.43,212.4,136.2]
[1736125044751,23.776884,212.44,212.4,136.2]
[1736125045554,23.776884,212.44,212.38,145.56170154]
[1736125045949,9.36170154,212.44,212.38,136.2]
[1736125046148,23.776884,212.42,212.38,136.2]
[1736125046927,20.0,212.34,212.23,139.73509168]
[1736125047225,2.08,212.33,212.23,3.53509168]
[1736125047432,9.36170154,212.25,212.22,136.2]
[1736125049229,9.36170154,212.25,212.19,136.2]
[1736125050227,2.08,212.33,212.2,9.36170154]
[1736125050426,2.08,212.33,212.19,136.2]
[1736125050427,9.36170154,212.25,212.21,136.2]
[1736125051624,9.36170154,212.26,212.21,136.2]
[1736125054669,1.5744,212.35,212.24,145.56170154]
[1736125054833,9.36170154,212.33,212.27,9.36170154]
[1736125055155,23.776884,212.32,212.27,9.36170154]
[1736125055655,9.36170154,212.33,212.27,9.36170154]
[1736125055969,6.0502,212.37,212.28,145.56170154]
[1736125056256,11.56170154,212.36,212.3,9.36170154]
[1736125056467,33.13858554,212.35,212.29,9.36170154]
[1736125056649,33.13858554,212.35,212.28,9.36170154]
[1736125057148,9.36170154,212.34,212.27,10.06808847]
[1736125058036,9.36170154,212.35,212.29,9.36170154]
[1736125058246,9.36170154,212.36,212.3,9.36170154]
[1736125059366,6.1683,212.42,212.26,0.7063553]
[1736125059367,20.0,212.39,212.31,9.36170154]
[1736125059656,9.36170154,212.38,212.32,9.36170154]
[1736125059858,23.776884,212.37,212.31,145.56170154]
[1736125060541,9.36170154,212.37,212.31,145.56170154]
[1736125060747,9.36170154,212.38,212.31,145.56170154]
[1736125060956,9.36170154,212.37,212.31,145.56170154]
[1736125061135,9.36170154,212.37,212.31,136.2]
[1736125063656,9.36170154,212.38,212.31,145.56170154]
[1736125064446,23.776884,212.4,212.33,9.36170154]
[1736125064649,9.36170154,212.41,212.35,9.36170154]
[1736125064963,9.36170154,212.42,212.36,0.70615634]
[1736125065551,9.36170154,212.41,212.36,0.70615634]
[1736125065732,9.36170154,212.41,212.35,145.56170154]
[1736125066362,9.36170154,212.41,212.35,136.2]
[1736125066564,9.36170154,212.4,212.35,136.2]
[1736125069366,9.36170154,212.41,212.35,136.2]
[1736125070654,9.36170154,212.42,212.35,145.56170154]
[1736125070850,9.36170154,212.42,212.36,9.36170154]
[1736125071170,33.13858554,212.43,212.36,10.0678562]
[1736125071353,9.36170154,212.42,212.36,10.0678562]
[1736125072370,9.36170154,212.42,212.36,146.2678562]
[1736125072546,33.13858554,212.43,212.36,145.56170154]
[1736125074154,2.2,212.47,212.38,9.36170154]
[1736125074467,23.776884,212.43,212.38,136.2]
[1736125075170,2.2,212.47,212.39,10.0678062]
[1736125075467,9.36170154,212.47,212.41,9.36170154]
[1736125075674,9.36170154,212.47,212.41,136.2]
[1736125077971,9.36170154,212.46,212.41,136.2]
[1736125078470,9.36170154,212.45,212.41,136.2]
[1736125078849,9.36170154,212.46,212.41,136.2]
[1736125080468,20.0,212.51,212.42,0.7059851]
[1736125080682,9.36170154,212.52,212.45,9.36170154]
[1736125080850,9.36170154,212.52,212.46,10.06750586]
[1736125081045,9.36170154,212.52,212.46,0.70580432]
[1736125081772,9.36170154,212.5,212.46,0.70580432]
[1736125082082,9.36170154,212.5,212.45,0.7058233]
[1736125082653,9.36170154,212.51,212.45,0.7058233]
[1736125083777,9.36170154,212.5,212.45,0.7058233]
[1736125083965,2.2,212.55,212.46,145.56170154]
[1736125084170,9.36170154,212.55,212.48,145.56170154]
[1736125084353,9.36170154,212.55,212.49,10.06739533]
[1736125084873,9.36170154,212.52,212.49,0.70569379]
[1736125085051,9.36170154,212.52,212.48,136.2]
[1736125085973,9.36170154,212.49,212.44,142.6478]
[1736125086179,9.36170154,212.47,212.44,142.6478]
[1736125086785,9.36170154,212.48,212.44,142.6478]
[1736125086976,23.776884,212.56,212.44,142.6478]
[1736125087172,14.63503829,212.48,212.44,142.6478]
[1736125087778,13.9609,212.57,212.44,142.6478]
[1736125087779,14.63503829,212.49,212.44,142.6478]
[1736125088000,14.63503829,212.5,212.44,157.28283829]
[1736125088164,14.63503829,212.51,212.45,151.54084419]
[1736125088475,14.63503829,212.52,212.46,14.63503829]
[1736125088654,14.63503829,212.52,212.47,0.70576467]
[1736125089181,14.63503829,212.54,212.47,15.34080296]
[1736125089767,14.63503829,212.53,212.47,15.34080296]
[1736125089964,14.63503829,212.49,212.45,136.2]
[1736125090152,14.63503829,212.48,212.45,136.2]
[1736125091385,14.63503829,212.49,212.45,136.2]
[1736125091683,14.63503829,212.5,212.45,136.2]
[1736125093888,14.63503829,212.51,212.46,0.70583014]
[1736125094074,23.776884,212.56,212.46,15.34086843]
[1736125094075,14.63503829,212.53,212.46,15.34086843]
[1736125094264,14.63503829,212.53,212.47,14.63503829]
[1736125094757,1.5265,212.61,212.47,14.63503829]
[1736125094758,14.63503829,212.54,212.47,150.83503829]
[1736125094955,14.63503829,212.54,212.48,0.70570672]
[1736125095159,14.63503829,212.55,212.49,150.83503829]
[1736125096873,23.776884,212.55,212.49,150.83503829]
[1736125097175,23.776884,212.55,212.5,0.70570257]
[1736125098087,14.63503829,212.56,212.5,0.70570257]
[1736125098267,14.63503829,212.58,212.52,14.63503829]
[1736125098463,14.63503829,212.58,212.52,15.34065602]
[1736125099160,14.63503829,212.57,212.51,14.63503829]
[1736125099377,14.63503829,212.57,212.5,150.83503829]
[1736125099573,14.63503829,212.57,212.51,0.70566699]
[1736125099776,14.63503829,212.57,212.51,15.34070528]
[1736125099973,14.63503829,212.58,212.51,15.34070528]
[1736125100374,14.63503829,212.58,212.51,151.54070528]
[1736125100584,14.63503829,212.58,212.51,150.83503829]
[1736125100782,14.63503829,212.58,212.52,0.70559865]
[1736125100964,14.63503829,212.59,212.53,14.63503829]
[1736125101163,14.63503829,212.6,212.53,14.63503829]
[1736125101669,23.776884,212.6,212.54,151.54057075]
[1736125101995,14.63503829,212.61,212.55,0.70553562]
[1736125102164,18.83588,212.67,212.55,151.54057391]
[1736125102367,14.63503829,212.63,212.56,151.54053112]
[1736125102573,14.63503829,212.6,212.56,136.2]
[1736125102781,14.63503829,212.58,212.52,142.6013]
[1736125102988,14.63503829,212.57,212.52,142.6013]
[1736125104194,14.63503829,212.58,212.52,142.6013]
[1736125105107,14.63503829,212.55,212.52,142.6013]
[1736125105270,14.63503829,212.53,212.5,137.8262]
[1736125106213,14.63503829,212.51,212.5,136.2]
[1736125106402,14.63503829,212.51,212.47,142.4996]
[1736125107791,14.63503829,212.52,212.47,142.4996]
[1736125108681,14.63503829,212.51,212.47,142.4996]
[1736125109892,14.63503829,212.5,212.47,136.2]
[1736125110474,14.63503829,212.51,212.47,136.2]
[1736125113605,14.63503829,212.5,212.47,136.2]
[1736125114278,14.63503829,212.5,212.45,137.7147]
[1736125114674,14.63503829,212.49,212.45,136.2]
[1736125116405,14.63503829,212.48,212.45,136.2]
[1736125119010,9.36701054,212.48,212.45,136.2]
[1736125122909,9.36701054,212.46,212.42,136.2]
[1736125123622,9.36701054,212.45,212.42,136.2]
[1736125123796,9.36701054,212.44,212.42,136.2]
[1736125124102,9.36701054,212.45,212.42,136.2]
[1736125124876,9.36701054,212.46,212.42,136.2]
[1736125126010,9.36701054,212.45,212.37,142.563]
[1736125126187,23.776884,212.43,212.37,151.93001054]
[1736125126678,9.36701054,212.46,212.4,145.56701054]
[1736125127882,9.36701054,212.46,212.4,136.2]
[1736125129090,9.36701054,212.44,212.4,136.2]
[1736125130016,9.36701054,212.45,212.4,136.2]
[1736125131993,9.36701054,212.44,212.4,136.2]
[1736125134215,9.36701054,212.44,212.37,15.73001054]
[1736125134216,33.14389454,212.41,212.37,136.2]
[1736125134396,9.36701054,212.38,212.37,136.2]
[1736125137720,9.36701054,212.39,212.37,136.2]
[1736125138291,9.36701054,212.39,212.34,137.7094]
[1736125140895,9.36701054,212.4,212.34,137.7094]
[1736125141621,9.36701054,212.39,212.34,137.7094]
[1736125142719,9.36701054,212.39,212.34,136.2]
[1736125144020,33.14389454,212.38,212.34,136.2]
[1736125144204,9.36701054,212.37,212.32,136.2]
[1736125145918,2.12,212.45,212.32,145.56701054]
[1736125146114,9.36701054,212.4,212.33,10.073249]
[1736125146418,9.36701054,212.4,212.34,9.36701054]
[1736125146798,2.12,212.45,212.33,10.073249]
[1736125147003,9.36701054,212.4,212.34,9.36701054]
[1736125147212,2.1,212.43,212.36,9.36701054]
[1736125147523,2.1,212.43,212.37,146.27310877]
[1736125147722,9.36701054,212.43,212.37,136.2]
[1736125147923,2.1,212.46,212.37,145.56701054]
[1736125148092,9.36701054,212.44,212.37,145.56701054]
[1736125148514,9.36701054,212.43,212.37,136.2]
[1736125148703,23.776884,212.45,212.37,136.2]
[1736125148704,9.36701054,212.42,212.37,136.2]
[1736125149791,23.776884,212.45,212.37,136.2]
[1736125149792,9.36701054,212.4,212.37,136.2]
[1736125150927,23.776884,212.45,212.37,136.2]
[1736125151129,9.36701054,212.41,212.37,136.2]
[1736125153344,23.776884,212.42,212.37,136.2]
[1736125155928,9.36701054,212.42,212.37,136.2]
[1736125157637,9.36701054,212.4,212.37,136.2]
[1736125159232,9.36701054,212.38,212.31,9.36701054]
[1736125159427,9.36701054,212.36,212.3,136.2]
[1736125160109,1.5824,212.42,212.34,9.36701054]
[1736125160315,9.36701054,212.41,212.35,9.36701054]
[1736125160509,23.776884,212.4,212.35,9.36701054]
[1736125160710,33.14389454,212.4,212.33,9.36701054]
[1736125161427,33.14389454,212.4,212.34,9.36701054]
[1736125162214,9.36701054,212.41,212.34,9.36701054]
[1736125162411,9.36701054,212.42,212.35,9.36701054]
[1736125162619,33.14389454,212.41,212.34,9.36701054]
[1736125163729,9.36701054,212.4,212.33,9.36701054]
[1736125164338,9.36701054,212.38,212.31,145.56701054]
[1736125164630,23.776884,212.36,212.31,136.2]
[1736125165405,9.36701054,212.38,212.31,145.56701054]
[1736125167836,23.776884,212.38,212.32,145.56701054]
[1736125168338,23.776884,212.38,212.33,9.36701054]
[1736125168537,9.36701054,212.4,212.33,9.36701054]
[1736125169142,23.776884,212.39,212.33,9.36701054]
[1736125170223,9.36701054,212.4,212.33,9.36701054]
[1736125170843,23.776884,212.39,212.33,9.36701054]
[1736125171139,33.14389454,212.39,212.32,145.56701054]
[1736125173919,33.14389454,212.39,212.32,136.2]
[1736125174640,9.36701054,212.38,212.32,136.2]
[1736125175537,23.776884,212.37,212.32,136.2]
[1736125175853,9.36701054,212.37,212.32,136.2]
[1736125176542,9.36701054,212.39,212.32,145.56701054]
[1736125177246,11.44701054,212.39,212.32,145.56701054]
[1736125178833,2.08,212.39,212.33,9.36701054]
[1736125179023,25.856884,212.39,212.33,9.36701054]
[1736125180718,35.22389454,212.39,212.32,136.2]
[1736125181448,23.776884,212.38,212.32,136.2]
[1736125182248,9.36701054,212.37,212.32,136.2]
[1736125183157,9.36701054,212.37,212.3,136.2]
[1736125183739,23.776884,212.35,212.3,136.2]
[1736125184157,9.36701054,212.37,212.3,136.2]
[1736125187653,23.776884,212.36,212.3,136.2]
[1736125189041,9.36701054,212.35,212.3,136.2]
[1736125189248,9.36701054,212.35,212.29,137.7751]
[1736125189447,23.776884,212.33,212.27,145.56701054]
[1736125190328,23.776884,212.34,212.27,145.56701054]
[1736125190852,23.776884,212.34,212.28,9.36701054]
[1736125191154,23.776884,212.35,212.28,9.36701054]
[1736125192145,9.36701054,212.37,212.3,9.36701054]
[1736125193456,23.776884,212.36,212.3,9.36701054]
[1736125194675,23.776884,212.38,212.3,9.36701054]
[1736125194855,33.14389454,212.38,212.3,9.36701054]
[1736125195881,23.776884,212.38,212.3,9.36701054]
[1736125196039,23.776884,212.36,212.3,9.36701054]
[1736125197263,23.776884,212.36,212.29,145.56701054]